bitfinex-derivatives/quotes_ETHF0:USTF0_20250607
["timestamp","ask_amount","ask_price","bid_price","bid_amount"]
[1749312436479,0.0059499,2521.9,2521.8,0.79264]
[1749312440077,0.0059499,2521.9,2521.8,1.48144]
[1749312449594,0.0059499,2521.9,2521.8,0.79264]
[1749312449989,0.0059499,2521.9,2521.6,4.5410499]
[1749312450189,0.79267,2521.7,2521.6,3.2137499]
[1749312450392,1.93165004,2521.7,2521.6,3.2137499]
[1749312450695,3.19215004,2521.7,2521.6,0.0059499]
[1749312451199,2.39948004,2521.7,2521.6,0.7986599]
[1749312452497,3.19215004,2521.7,2521.6,0.7986599]
[1749312452893,11.09226699,2521.7,2521.6,0.0059499]
[1749312453198,10.29959699,2521.7,2521.6,0.7986599]
[1749312454196,7.09179699,2521.7,2521.6,0.7986599]
[1749312454395,5.83129699,2521.7,2521.6,0.7986599]
[1749312454590,0.0059499,2521.9,2521.8,0.79264]
[1749312454893,3.2078,2523.2,2521.8,22.834]
[1749312455099,5.9057,2523.2,2523.0,0.79225]
[1749312455289,2.6979,2523.2,2523.1,0.79223]
[1749312455491,7.8998,2523.5,2523.4,0.79214]
[1749312455692,8.69191,2523.5,2523.3,0.79214]
[1749312455893,7.8998,2523.5,2523.4,0.79214]
[1749312456089,3.2078,2523.5,2523.3,0.79215]
[1749312456294,5.48415,2523.4,2523.2,0.79219]
[1749312456497,4.692,2523.4,2523.2,0.7922]
[1749312456695,6.0837,2523.4,2523.1,0.0059499]
[1749312456997,6.87585,2523.4,2523.2,0.79219]
[1749312457500,7.53235,2523.4,2523.2,0.79219]
[1749312457702,6.7402,2523.4,2523.1,0.7981699]
[1749312458002,7.53235,2523.4,2523.1,0.7981699]
[1749312458200,6.7402,2523.4,2523.2,0.7922]
[1749312458600,7.53234,2523.4,2523.2,0.7922]
[1749312459201,7.53234,2523.4,2523.1,0.7981699]
[1749312459700,7.53234,2523.4,2523.2,0.7922]
[1749312459899,6.7402,2523.4,2523.1,0.7981699]
[1749312460398,0.79219,2523.3,2523.1,0.0059499]
[1749312460603,1.2722,2523.3,2523.1,0.0059499]
[1749312460803,1.2722,2523.3,2523.2,0.7922]
[1749312461205,5.3485,2523.4,2523.3,0.79217]
[1749312462702,6.14064,2523.4,2523.2,0.79219]
[1749312463103,6.14064,2523.4,2523.3,0.79217]
[1749312463604,5.3485,2523.4,2523.3,0.79217]
[1749312463806,6.14064,2523.4,2523.3,0.79217]
[1749312463998,6.14064,2523.4,2523.2,0.79218]
[1749312464202,0.79219,2523.3,2523.1,0.7981699]
[1749312464508,0.79219,2523.3,2523.1,0.7981599]
[1749312464897,0.79219,2523.3,2523.2,0.7922]
[1749312465903,6.14066,2523.4,2523.3,0.79217]
[1749312466096,6.14066,2523.4,2523.2,0.79218]
[1749312466609,6.14066,2523.4,2523.3,0.79217]
[1749312466914,5.3485,2523.4,2523.1,0.0059499]
[1749312467117,6.14065,2523.4,2523.2,0.7922]
[1749312467510,0.79217,2523.3,2523.2,0.7922]
[1749312467916,0.79219,2523.3,2523.2,0.79219]
[1749312468118,5.3485,2523.4,2523.3,0.79217]
[1749312468618,4.692,2523.4,2523.3,0.79217]
[1749312469008,4.69,2523.9,2523.4,1.98036]
[1749312469215,4.69,2523.9,2523.8,0.79202]
[1749312469416,5.48198,2523.9,2523.8,0.79202]
[1749312470109,0.79198,2523.9,2523.8,0.79202]
[1749312470315,5.48199,2523.9,2523.8,0.792]
[1749312470515,5.48199,2523.9,2523.4,1.98036]
[1749312470818,5.48199,2523.9,2523.8,0.79201]
[1749312471018,0.79198,2524.0,2523.8,0.79201]
[1749312471211,4.689,2523.9,2523.7,0.79204]
[1749312471410,5.481,2523.9,2523.7,0.79204]
[1749312471612,0.79202,2523.8,2523.3,5.18821]
[1749312471811,0.79202,2523.8,2523.7,0.79205]
[1749312472220,0.79206,2523.7,2523.6,0.79207]
[1749312473018,0.79208,2523.6,2523.5,0.7921]
[1749312473217,0.79205,2523.7,2523.6,0.79207]
[1749312473418,0.79207,2523.7,2523.5,0.79209]
[1749312473917,0.79207,2523.7,2523.6,0.79208]
[1749312474412,4.689,2523.9,2523.4,1.98036]
[1749312474620,4.689,2523.9,2523.8,0.79201]
[1749312475721,0.79198,2524.0,2523.9,0.79198]
[1749312475913,0.79198,2524.0,2523.9,0.79196]
[1749312475914,0.79195,2524.0,2523.9,0.79196]
[1749312476517,0.79199,2523.9,2523.8,0.792]
[1749312477022,7.8968,2524.1,2523.7,2.07882]
[1749312477232,0.792,2523.9,2523.7,2.07882]
[1749312477527,9.1964,2524.1,2523.8,0.79201]
[1749312478121,0.79198,2524.0,2523.8,0.79201]
[1749312478322,9.1964,2524.1,2523.8,0.79201]
[1749312478526,0.79195,2524.0,2523.8,0.79201]
[1749312478726,0.79198,2523.9,2523.8,0.79201]
[1749312478930,0.79197,2524.0,2523.8,0.79201]
[1749312479121,9.1964,2524.1,2523.8,0.79201]
[1749312479829,0.79197,2524.0,2523.8,0.79201]
[1749312480318,0.79197,2524.0,2523.9,0.79198]
[1749312480519,9.1964,2524.1,2523.8,0.79199]
[1749312480729,0.79195,2524.0,2523.9,0.79198]
[1749312480929,0.79195,2524.0,2523.8,0.792]
[1749312481326,0.79198,2523.9,2523.7,1.2868]
[1749312481532,9.1964,2524.1,2523.7,1.2868]
[1749312481533,0.79201,2523.8,2523.7,1.2868]
[1749312481722,0.79205,2523.7,2523.3,3.2078]
[1749312481923,4.689,2523.7,2523.1,0.0059499]
[1749312482130,2.8491,2523.6,2523.1,0.0059499]
[1749312482331,2.84908,2523.6,2523.5,0.79211]
[1749312482530,2.84908,2523.6,2523.4,0.79212]
[1749312482730,2.84908,2523.6,2523.5,0.79211]
[1749312483329,2.057,2523.6,2523.5,0.79211]
[1749312483532,2.84908,2523.6,2523.5,0.79211]
[1749312483733,0.79211,2523.5,2523.4,0.79212]
[1749312484230,2.8491,2523.6,2523.4,0.79212]
[1749312484427,2.057,2523.6,2523.3,0.79215]
[1749312484628,2.84909,2523.6,2523.4,0.79213]
[1749312484825,3.2078,2523.8,2523.2,3.2078]
[1749312485134,23.982,2524.2,2523.1,0.0059499]
[1749312485135,3.2078,2524.1,2524.0,0.79195]
[1749312485336,4.27740358,2524.1,2524.0,0.79195]
[1749312486837,9.27740358,2524.1,2523.5,3.2078]
[1749312487037,3.99983,2523.8,2523.7,0.79205]
[1749312487240,8.96640358,2523.8,2523.7,0.79205]
[1749312487733,0.6403,2524.0,2523.9,0.79198]
[1749312487935,6.39884709,2524.0,2523.9,0.79198]
[1749312488436,6.3988405,2524.0,2523.9,0.79198]
[1749312489032,7.1907905,2524.0,2523.9,0.79198]
[1749312489337,7.1907905,2524.0,2523.8,0.792]
[1749312489530,6.12125,2524.0,2523.8,0.792]
[1749312489731,1.86180135,2523.9,2523.8,0.792]
[1749312489931,1.86180135,2523.9,2523.7,0.6848]
[1749312490132,0.79198,2523.9,2523.7,0.6848]
[1749312490331,0.79198,2523.9,2523.8,0.79202]
[1749312490534,1.86196566,2523.9,2523.7,1.47683]
[1749312490733,0.79198,2523.9,2523.7,1.47683]
[1749312491035,6.12127,2524.0,2523.8,0.79202]
[1749312491239,1.07008759,2523.9,2523.8,0.79202]
[1749312491638,1.86206759,2523.9,2523.8,0.79202]
[1749312492139,1.86206759,2523.9,2523.7,1.47682]
[1749312492337,5.3293,2524.0,2523.7,1.47682]
[1749312492539,1.86219981,2523.9,2523.7,0.6848]
[1749312492729,5.3293,2524.0,2523.7,1.47682]
[1749312492935,3.13674506,2523.9,2523.7,1.47682]
[1749312493137,1.07034506,2523.8,2523.7,1.47682]
[1749312493336,1.86235506,2523.8,2523.7,0.6848]
[1749312493542,4.27814506,2523.8,2523.6,0.79206]
[1749312493842,0.79205,2523.7,2523.4,0.6435]
[1749312494146,0.79205,2523.7,2523.6,0.79208]
[1749312494441,3.2078,2523.8,2523.6,0.79207]
[1749312494744,3.99981,2523.8,2523.7,0.79205]
[1749312494945,0.79205,2523.7,2523.4,0.6435]
[1749312495148,0.79209,2523.6,2523.5,0.7921]
[1749312495442,5.3204,2523.6,2523.5,0.7921]
[1749312495645,0.6314,2523.6,2523.5,0.7921]
[1749312495937,4.689,2523.8,2523.7,0.79205]
[1749312496141,1.06843364,2523.8,2523.7,0.79205]
[1749312496342,4.689,2524.0,2523.9,0.79198]
[1749312496641,5.75739347,2524.0,2523.9,0.79198]
[1749312496838,6.54934347,2524.0,2523.9,0.79198]
[1749312497431,1.06839347,2524.0,2523.9,0.79198]
[1749312497637,5.75639347,2524.0,2523.9,0.79198]
[1749312500939,1.06839347,2524.0,2523.9,0.79198]
[1749312501333,0.79198,2523.9,2523.8,0.79199]
[1749312501537,2.52127347,2523.9,2523.8,0.79199]
[1749312501832,1.72929347,2523.9,2523.8,0.79199]
[1749312502238,2.52127347,2523.9,2523.8,0.79199]
[1749312502443,1.72929347,2523.9,2523.8,0.79199]
[1749312503846,2.52127347,2523.9,2523.8,0.79199]
[1749312504246,1.72929347,2523.9,2523.8,0.79199]
[1749312506948,1.06839347,2523.9,2523.8,0.79199]
[1749312507148,3.2078,2524.1,2524.0,0.79195]
[1749312507344,8.99808576,2524.1,2523.2,3.2078]
[1749312507544,8.99808576,2524.1,2523.1,0.7981699]
[1749312507545,0.79219,2523.3,2523.1,0.7981699]
[1749312507841,1.06928576,2523.2,2523.1,0.7981799]
[1749312508041,0.6633,2523.9,2523.7,0.79204]
[1749312508250,5.79004209,2523.8,2523.7,0.79204]
[1749312508449,5.79004209,2523.8,2523.6,0.79206]
[1749312508747,1.06904209,2523.7,2523.6,0.79206]
[1749312509251,1.86109209,2523.7,2523.5,0.79208]
[1749312509450,1.0686999,2523.6,2523.5,0.79208]
[1749312510446,1.0686999,2523.6,2523.5,2.05688]
[1749312510946,5.513,2523.9,2523.7,0.79204]
[1749312511147,1.06860687,2523.8,2523.7,0.79204]
[1749312515350,1.86063687,2523.8,2523.4,3.8887]
[1749312515657,5.513,2523.9,2523.7,0.79205]
[1749312515846,1.06900942,2523.8,2523.7,0.79205]
[1749312517548,5.79000942,2523.8,2523.7,0.79205]
[1749312518152,1.06900942,2523.8,2523.7,0.79205]
[1749312518453,1.06900942,2523.8,2523.4,7.25872]
[1749312518454,3.99973,2524.1,2523.5,1.3933]
[1749312518754,5.79138619,2524.0,2523.9,0.79198]
[1749312518957,6.58333619,2524.0,2523.9,0.79198]
[1749312519151,5.79138619,2524.0,2523.9,0.79198]
[1749312520156,6.58333619,2524.0,2523.9,0.79198]
[1749312520854,6.58314756,2524.0,2523.9,0.79198]
[1749312521448,5.79119756,2524.0,2523.9,0.79198]
[1749312522244,6.58314756,2524.0,2523.9,0.79198]
[1749312522447,5.79119756,2524.0,2523.9,0.79198]
[1749312524253,1.07019756,2524.0,2523.9,0.79198]
[1749312524453,28.702,2524.2,2524.1,0.79192]
[1749312524653,29.75001978,2524.2,2524.1,0.79192]
[1749312524950,25.03001978,2524.2,2524.1,0.79192]
[1749312525154,23.982,2524.2,2524.1,3.99972]
[1749312525357,3.2078,2524.5,2524.4,0.79183]
[1749312525652,4.25487917,2524.5,2524.4,0.79183]
[1749312525847,5.04667917,2524.5,2524.4,0.79183]
[1749312526056,4.25487917,2524.5,2524.4,0.79183]
[1749312526256,5.04667917,2524.5,2524.4,0.79183]
[1749312526555,5.04667917,2524.5,2524.2,0.6919]
[1749312526751,3.9996,2524.5,2524.3,0.79184]
[1749312527247,0.79183,2524.4,2524.2,0.6919]
[1749312527550,0.79183,2524.4,2524.3,0.79185]
[1749312527760,3.99962,2524.5,2524.3,0.79185]
[1749312527958,0.79183,2524.4,2524.3,0.79185]
[1749312528155,0.79183,2524.4,2524.2,0.6919]
[1749312528353,3.99962,2524.5,2524.3,0.79185]
[1749312528563,0.79185,2524.4,2524.2,1.48378]
[1749312528957,4.5275,2524.5,2524.2,0.6919]
[1749312529255,0.79184,2524.4,2524.2,1.48377]
[1749312529558,4.5275,2524.5,2524.2,1.48377]
[1749312529855,0.79186,2524.3,2524.0,0.79192]
[1749312530058,2.77689,2524.2,2524.1,0.79192]
[1749312530258,2.77689,2524.2,2524.0,0.79194]
[1749312530259,5.1928,2524.2,2524.0,0.79194]
[1749312530462,0.79192,2524.1,2523.9,0.79197]
[1749312530668,2.10922,2524.1,2523.9,0.79197]
[1749312530958,2.10922,2524.1,2524.0,0.79195]
[1749312531157,2.36477527,2524.1,2524.0,0.79195]
[1749312531555,3.15669527,2524.1,2523.9,0.79197]
[1749312531859,2.10922,2524.1,2523.9,0.79197]
[1749312532060,1.3173,2524.1,2523.8,0.792]
[1749312532263,0.79196,2524.0,2523.9,0.79198]
[1749312533758,2.10924,2524.1,2523.9,0.79198]
[1749312535149,2.10924,2524.1,2524.0,0.79195]
[1749312535351,1.04718816,2524.1,2524.0,0.79195]
[1749312535550,0.79197,2524.0,2523.7,0.6404]
[1749312535760,5.52394,2524.1,2524.0,0.79195]
[1749312535961,6.57111756,2524.1,2524.0,0.79195]
[1749312537461,5.77917756,2524.1,2524.0,0.79195]
[1749312538663,3.2078,2524.5,2524.4,0.79183]
[1749312538955,9.78006043,2524.5,2524.3,0.79184]
[1749312539161,1.84027043,2524.4,2524.3,0.79186]
[1749312540758,5.78044043,2524.4,2524.3,0.79186]
[1749312540953,1.04844043,2524.4,2524.3,0.79186]
[1749312541161,4.732,2524.6,2524.5,0.7918]
[1749312541360,5.78015388,2524.6,2524.5,0.7918]
[1749312541867,1.04815388,2524.6,2524.5,0.7918]
[1749312542159,0.79173,2524.7,2524.5,0.79178]
[1749312542462,3.99952,2524.8,2524.6,0.79175]
[1749312542656,7.9398,2524.8,2524.7,0.79173]
[1749312542852,8.98697297,2524.8,2524.7,0.79173]
[1749312543258,4.25497297,2524.8,2524.7,0.79173]
[1749312544055,3.2078,2524.8,2524.7,0.79173]
[1749312544261,3.2078,2524.8,2524.7,2.17363]
[1749312544657,3.2078,2525.4,2524.7,9.5897]
[1749312544966,1.04642402,2525.3,2525.2,0.79158]
[1749312545163,3.2078,2525.4,2525.3,0.79154]
[1749312545364,3.2078,2525.7,2525.0,3.2078]
[1749312545555,7.9398,2525.7,2525.1,2.0427]
[1749312545858,7.9398,2525.7,2525.1,0.6867]
[1749312545859,3.99933,2525.4,2525.1,0.6867]
[1749312546055,0.79158,2525.2,2525.1,0.6867]
[1749312546371,0.79158,2525.2,2524.8,1.356]
[1749312546663,0.79158,2525.2,2524.9,0.66]
[1749312546860,2.06586,2525.3,2525.0,0.79164]
[1749312547059,0.79158,2525.2,2525.0,0.79164]
[1749312547257,0.79162,2525.1,2524.9,0.66]
[1749312547462,1.2743,2525.3,2524.9,0.66]
[1749312547657,0.79166,2525.0,2524.7,3.2078]
[1749312547858,0.79167,2524.9,2524.7,3.99952]
[1749312548163,0.79167,2524.9,2524.7,3.2078]
[1749312548367,0.79167,2524.9,2524.7,0.79173]
[1749312548660,5.4011,2525.0,2524.4,0.0059499]
[1749312548661,0.79176,2524.7,2524.4,0.0059499]
[1749312548855,1.2649,2524.8,2524.4,0.6436499]
[1749312549168,0.79175,2524.7,2524.5,0.79179]
[1749312549460,1.2649,2524.8,2524.6,0.79175]
[1749312549664,1.2649,2524.8,2524.4,0.6436499]
[1749312549665,4.731,2524.8,2524.4,0.6436499]
[1749312549864,4.731,2524.8,2524.6,0.79176]
[1749312550065,5.5227,2524.8,2524.6,0.79176]
[1749312550862,0.7917,2524.8,2524.6,0.79176]
[1749312552163,5.52269,2524.9,2524.7,0.79173]
[1749312552365,4.731,2524.9,2524.7,0.79173]
[1749312552565,5.52267,2524.9,2524.8,0.6448]
[1749312553566,4.731,2524.9,2524.8,0.6448]
[1749312553767,5.52267,2524.9,2524.8,0.6448]
[1749312554457,4.731,2524.9,2524.5,1.2754]
[1749312554661,0.79173,2524.7,2524.6,0.6448]
[1749312555064,0.79178,2524.6,2524.4,0.7977599]
[1749312555467,0.7918,2524.5,2524.4,0.0059499]
[1749312555969,4.731,2524.5,2524.4,0.7977799]
[1749312556373,5.5228,2524.5,2524.4,0.7977799]
[1749312556572,5.5228,2524.5,2524.4,0.0059499]
[1749312556768,4.731,2524.5,2524.4,0.7977799]
[1749312557066,0.696,2524.6,2524.5,0.7918]
[1749312557268,5.52275,2524.7,2524.5,0.7918]
[1749312557767,0.79176,2524.6,2524.4,0.7977599]
[1749312557970,5.52276,2524.7,2524.5,0.7918]
[1749312558470,4.731,2524.7,2524.6,0.79176]
[1749312558666,3.2078,2524.8,2524.7,0.79173]
[1749312558967,7.9388,2524.8,2524.7,0.79173]
[1749312559171,3.2078,2524.8,2524.7,0.79173]
[1749312559476,7.9388,2524.8,2524.7,0.79173]
[1749312561073,0.79175,2524.7,2524.5,2.16648]
[1749312561370,0.79175,2524.7,2524.5,0.79178]
[1749312563468,7.9388,2524.8,2524.4,0.7977699]
[1749312563774,0.7918,2524.5,2524.4,0.0059499]
[1749312563980,0.6476,2524.6,2524.4,0.7977599]
[1749312564273,0.7918,2524.5,2524.4,0.0059499]
[1749312564473,2.0224,2524.6,2524.4,0.7977699]
[1749312564667,2.0224,2524.6,2524.5,0.7918]
[1749312564868,7.9578,2524.8,2524.7,0.79173]
[1749312565069,9.00437898,2524.8,2524.7,0.79173]
[1749312565272,7.9578,2524.8,2524.7,0.79173]
[1749312566069,3.2078,2524.8,2524.7,0.79173]
[1749312566770,5.54168,2524.9,2524.7,0.79173]
[1749312567280,5.54168,2524.9,2524.8,0.7917]
[1749312567577,5.79496421,2524.9,2524.8,0.7917]
[1749312568771,6.58664421,2524.9,2524.7,0.79172]
[1749312568971,1.04496421,2524.8,2524.7,0.79172]
[1749312571975,0.79173,2524.7,2524.6,0.79175]
[1749312572186,0.79178,2524.6,2524.4,0.7977499]
[1749312572386,1.04607177,2524.7,2524.5,0.79178]
[1749312572387,0.79176,2524.7,2524.5,0.79178]
[1749312572674,0.79178,2524.6,2524.4,0.7977499]
[1749312572882,0.7918,2524.5,2524.4,0.7977499]
[1749312573078,0.7918,2524.5,2524.4,0.0059499]
[1749312573684,1.83580197,2524.5,2524.4,0.7977799]
[1749312573884,0.7918,2524.5,2524.4,0.7977799]
[1749312574084,0.7918,2524.5,2524.4,0.0059499]
[1749312574284,1.83554676,2524.5,2524.4,0.0059499]
[1749312574582,1.04374676,2524.5,2524.4,0.7977799]
[1749312574785,1.83554676,2524.5,2524.4,0.0059499]
[1749312575488,5.04334676,2524.5,2524.4,0.0059499]
[1749312575685,9.79334676,2524.5,2524.4,0.0059499]
[1749312580403,8.7496,2524.5,2524.4,0.0059499]
[1749312581191,9.79315162,2524.5,2524.4,0.0059499]
[1749312589506,9.79315162,2524.5,2524.4,0.7977799]
[1749312589802,5.79355162,2524.5,2524.4,0.0059499]
[1749312590003,6.58535162,2524.5,2524.4,0.0059499]
[1749312590804,5.5418,2524.5,2524.4,0.0059499]
[1749312591595,8.7496,2524.5,2524.4,0.0059499]
[1749312591792,9.79284241,2524.5,2524.4,0.0059499]
[1749312596011,6.58504241,2524.5,2524.4,0.0059499]
[1749312601910,1.83504241,2524.5,2524.4,0.0059499]
[1749312602106,1.83504241,2524.5,2524.4,1.2767499]
[1749312602311,1.04324241,2524.5,2524.4,2.0685799]
[1749312602613,1.83504241,2524.5,2524.4,1.2767499]
[1749312603513,1.04324241,2524.5,2524.4,0.7977799]
[1749312603705,1.83504241,2524.5,2524.4,2.1390799]
[1749312604301,5.49875,2524.7,2524.5,0.79178]
[1749312604514,4.707,2525.0,2524.6,1.97935]
[1749312604709,1.03572618,2524.9,2524.8,0.7917]
[1749312605009,0.79163,2525.1,2524.9,0.79166]
[1749312605209,0.79163,2525.1,2524.9,2.77206]
[1749312605706,0.79159,2525.2,2525.0,2.13292]
[1749312605909,5.49853,2525.4,2525.2,0.79156]
[1749312606115,4.707,2525.4,2525.3,1.2773]
[1749312606315,6.52991974,2525.4,2525.3,1.2773]
[1749312606811,1.03140974,2525.4,2525.3,2.06884]
[1749312607115,3.2078,2525.5,2525.4,0.79151]
[1749312607315,3.2078,2525.5,2525.4,2.06281]
[1749312607515,3.2078,2525.5,2525.4,7.06281]
[1749312607817,3.2078,2525.5,2525.4,6.2713]
[1749312608016,7.9148,2525.9,2525.4,10.27061]
[1749312608204,0.79144,2525.7,2525.5,0.79148]
[1749312608409,0.79144,2525.7,2525.6,1.2713]
[1749312608810,0.7914,2525.8,2525.6,1.2713]
[1749312609012,0.79142,2525.7,2525.6,1.2713]
[1749312610218,0.79151,2525.4,2525.3,1.2773]
[1749312611111,0.79165,2525.0,2524.8,5.49768]
[1749312611311,0.79165,2525.0,2524.6,3.2078]
[1749312611312,0.79165,2525.0,2524.9,1.2972]
[1749312611515,0.79163,2525.1,2524.9,1.2972]
[1749312611815,3.2078,2525.3,2524.9,1.2972]
[1749312612013,0.79162,2525.1,2524.9,2.08887]
[1749312612218,0.79159,2525.2,2525.0,0.79163]
[1749312612519,0.79159,2525.2,2524.9,1.2972]
[1749312612520,0.79159,2525.2,2524.9,2.08885]
[1749312612721,0.79161,2525.1,2524.9,2.08885]
[1749312613317,0.79161,2525.1,2525.0,0.79164]
[1749312613515,0.79161,2525.1,2524.9,2.08885]
[1749312614226,0.79161,2525.1,2525.0,0.79164]
[1749312615117,0.7916,2525.2,2525.0,0.79164]
[1749312615422,0.79161,2525.1,2525.0,0.79164]
[1749312615722,0.79159,2525.2,2524.9,1.2972]
[1749312615918,0.79152,2525.4,2524.9,4.505]
[1749312616120,5.49752,2525.4,2525.0,1.3728]
[1749312616331,5.49752,2525.4,2525.2,0.79155]
[1749312616624,0.79154,2525.4,2525.0,1.3728]
[1749312616933,0.79158,2525.2,2525.1,0.7916]
[1749312617223,0.79156,2525.3,2525.1,0.79159]
[1749312617423,0.79158,2525.2,2525.1,0.79159]
[1749312617728,0.79156,2525.3,2525.2,0.79156]
[1749312618023,0.79155,2525.3,2525.2,0.79156]
[1749312618922,0.79151,2525.5,2525.4,0.79151]
[1749312619123,0.79152,2525.4,2525.3,0.79152]
[1749312619625,0.7915,2525.5,2525.4,0.7915]
[1749312620425,7.9128,2525.6,2525.0,3.35187]
[1749312620721,7.9128,2525.6,2525.5,0.79148]
[1749312621226,4.705,2525.6,2525.5,0.79148]
[1749312621426,0.79141,2525.8,2525.7,0.79142]
[1749312622726,0.79138,2525.9,2525.8,0.79138]
[1749312623022,0.79141,2525.8,2525.7,0.79141]
[1749312623225,7.9128,2526.0,2525.5,1.9823]
[1749312623723,8.70414,2526.0,2525.8,0.79139]
[1749312623926,8.70414,2526.0,2525.5,2.6543]
[1749312624119,3.2078,2526.0,2525.9,0.79136]
[1749312624529,3.99913,2526.0,2525.9,0.79136]
[1749312625429,3.2078,2526.0,2525.7,0.79139]
[1749312625623,0.79137,2525.9,2525.8,0.79139]
[1749312625826,5.30305,2526.0,2525.8,0.79139]
[1749312626022,0.79137,2525.9,2525.7,0.7914]
[1749312626227,5.30305,2526.0,2525.8,0.79137]
[1749312626432,5.30304,2526.0,2525.8,0.79137]
[1749312627031,3.2078,2526.0,2525.9,0.79136]
[1749312627531,3.2078,2526.0,2525.6,1.3742]
[1749312627829,3.99914,2526.0,2525.8,0.79137]
[1749312628126,3.99915,2526.0,2525.8,0.79137]
[1749312628331,0.6402,2525.9,2525.8,0.79137]
[1749312628629,0.79139,2525.8,2525.5,1.3165]
[1749312628828,0.6402,2525.9,2525.8,0.79139]
[1749312629029,1.43158,2525.9,2525.8,0.79139]
[1749312629229,0.7914,2525.8,2525.7,0.79142]
[1749312629425,1.9743,2525.9,2525.6,0.79143]
[1749312629625,0.79139,2525.8,2525.6,0.79143]
[1749312629828,1.9743,2525.9,2525.6,0.79143]
[1749312630025,1.3341,2525.8,2525.6,0.79143]
[1749312630229,1.3341,2525.8,2525.5,1.3165]
[1749312630230,1.3341,2525.8,2525.7,0.79142]
[1749312630937,0.6402,2525.9,2525.8,0.79139]
[1749312631523,1.43156,2525.9,2525.8,0.79139]
[1749312632137,0.6402,2525.9,2525.5,1.3165]
[1749312632327,0.79144,2525.7,2525.6,0.79145]
[1749312632634,1.3349,2525.8,2525.7,0.79142]
[1749312632930,1.3349,2525.8,2525.5,1.3165]
[1749312632931,1.43157,2525.9,2525.8,0.79139]
[1749312634331,0.6402,2525.9,2525.5,0.6445]
[1749312634534,1.9884,2525.9,2525.5,0.6445]
[1749312634732,1.43157,2525.9,2525.8,0.79139]
[1749312635134,0.6402,2525.9,2525.8,0.79139]
[1749312635832,3.2078,2526.0,2525.9,0.79136]
[1749312636330,0.15999802,2526.5,2526.4,0.7912]
[1749312637324,0.95117802,2526.5,2526.3,0.6583]
[1749312637531,0.15999802,2526.5,2526.4,0.7912]
[1749312637739,0.79123,2526.3,2526.2,0.00593801]
[1749312638330,2.07053,2526.3,2526.2,0.00593801]
[1749312639636,5.27833,2526.3,2526.2,0.00593801]
[1749312641838,0.79139,2525.8,2525.7,1.2905]
[1749312642042,0.79139,2525.8,2525.7,0.6522]
[1749312642343,0.79142,2525.7,2525.6,3.2078]
[1749312642742,0.79141,2525.8,2525.6,3.99924]
[1749312643042,0.79142,2525.7,2525.6,3.2078]
[1749312643744,0.79142,2525.7,2525.6,3.99925]
[1749312643942,0.79142,2525.7,2525.6,3.2078]
[1749312644138,0.00589836,2525.9,2525.6,3.2078]
[1749312644443,0.00589836,2525.9,2525.8,0.79139]
[1749312644844,0.00589836,2525.9,2525.8,2.17519]
[1749312646539,0.00589836,2525.9,2525.8,0.79139]
[1749312648551,0.00589836,2525.9,2525.8,2.08349]
[1749312651541,0.00589836,2525.9,2525.8,2.75549]
[1749312652153,3.2078,2526.3,2526.2,0.79126]
[1749312653056,3.2078,2526.3,2526.2,2.82816]
[1749312653847,0.15999802,2526.5,2526.4,0.7912]
[1749312658056,0.15999802,2526.5,2526.4,3.999]
[1749312659050,0.15999802,2526.5,2526.4,3.2078]
[1749312659051,0.95116802,2526.5,2526.4,3.2078]
[1749312659351,0.79122,2526.4,2526.2,0.672]
[1749312659653,0.6833,2526.4,2526.3,0.79122]
[1749312660049,0.15999802,2526.5,2526.4,0.7912]
[1749312660450,0.15999802,2526.5,2526.3,0.79122]
[1749312660651,0.95117802,2526.5,2526.1,0.6847]
[1749312660846,0.7912,2526.4,2526.1,1.47598]
[1749312661051,2.0768,2526.4,2526.2,0.79126]
[1749312661252,2.0768,2526.4,2526.1,1.47597]
[1749312661446,2.0768,2526.4,2526.2,0.79126]
[1749312661752,1.2856,2526.4,2526.2,0.79126]
[1749312662156,2.07681,2526.4,2526.1,1.47597]
[1749312662351,1.2856,2526.4,2525.9,3.8904]
[1749312662558,0.7913,2526.1,2525.9,3.2078]
[1749312662760,5.49728,2526.2,2525.9,3.99915]
[1749312662952,6.13468,2526.2,2525.9,3.99915]
[1749312663150,0.79129,2526.1,2525.9,3.99915]
[1749312663450,5.3434,2526.2,2525.9,3.99915]
[1749312663451,6.13469,2526.2,2525.9,3.99915]
[1749312664359,5.3434,2526.2,2525.9,3.2078]
[1749312664657,1.339,2526.1,2525.8,0.79138]
[1749312664961,2.13031,2526.1,2525.8,0.79138]
[1749312665458,1.339,2526.0,2525.8,0.79138]
[1749312665959,2.13033,2526.0,2525.8,0.79138]
[1749312666151,2.13033,2526.0,2525.6,5.1814]
[1749312666559,1.339,2526.0,2525.7,0.79142]
[1749312666762,2.13034,2526.0,2525.7,0.79142]
[1749312666952,1.339,2526.0,2525.9,0.79135]
[1749312667261,5.342,2526.1,2525.6,4.5094]
[1749312667459,1.312,2526.0,2525.6,4.5094]
[1749312667657,0.79142,2525.7,2525.6,3.8655]
[1749312667960,0.79139,2525.8,2525.6,3.99925]
[1749312668347,0.79142,2525.7,2525.6,3.2078]
[1749312668554,1.9972,2525.7,2525.6,3.2078]
[1749312668862,7.49462,2525.7,2525.6,3.2078]
[1749312669059,6.7032,2525.7,2525.6,3.2078]
[1749312669258,7.49462,2525.7,2525.6,3.2078]
[1749312669552,6.7032,2525.7,2525.4,0.67793801]
[1749312669763,0.79148,2525.5,2525.4,0.00593801]
[1749312671461,3.16116892,2525.5,2525.4,0.00593801]
[1749312671664,0.79161,2525.1,2525.0,0.672]
[1749312671856,5.49761,2525.1,2525.0,0.672]